Cogmind - Beta 9.4 *** ADVENTURER MODE // 2020.01.09 @ 23:03:29 Player: The LA Result: Destroyed by G-34 Mercenary with Small Laser Performance ------------- Evolutions (0) 0 Regions Visited (1) 200 Robots Destroyed (31) 155 Value Destroyed (313) 313 Prototype IDs (2) 40 Alien Tech Used (0) 0 Bonus (0) 0 TOTAL SCORE: 708 Bonus ------- None Cogmind --------- Core Integrity 0/250 Matter 300/300 Energy 88/100 System Corruption 0% Temperature Cool (6) Movement Walking (210) Ox3 Location -10/Materials Parts ------- > --- POWER (1) -------- (None) > --- PROPULSION (2) --- Aluminum Leg > --- UTILITY (2) ------ Large Storage Unit Large Storage Unit > --- WEAPON (2) ------- (None) > --- INVENTORY (16) --- Small Storage Unit Small Storage Unit Medium Storage Unit Medium Matter Pod (21) High-capacity Matter Pod (52) Structural Scanner Improved Terrain Scanner Terrain Scan Processor Tractor Beam Peak State ------------ > --- POWER ------------ Light Ion Engine > --- PROPULSION ------- Light Treads Light Treads > --- UTILITY ---------- Improved Terrain Scanner Tractor Beam > --- WEAPON ----------- Assault Rifle Light Assault Rifle > --- INVENTORY -------- Light Ion Engine Small Storage Unit Medium Matter Pod Small Laser [Rating: 8] Favorites ----------- Power Light Ion Engine Engine Light Ion Engine Propulsion Light Treads Treads Light Treads Leg Aluminum Leg Wheel Wheel Utility Seismic Analyzer Device Improved Terrain Scanner Storage Small Storage Unit Processor Seismic Analyzer Weapon Mining Laser Energy Gun Small Laser Ballistic Gun Assault Rifle Special Weapon Mining Laser Build | -11 -10 ------- Run | Scr Mat Slots Evolved . | . . Power . | . . Propulsion . | . . Utility . | . . Weapon . | . . Parts Attached 38 | 20 18 Power 4 | 1 3 Engine 4 | 1 3 Core . | . . Reactor . | . . Propulsion 7 | 6 1 Treads 3 | 3 . Leg 2 | 1 1 Wheel 2 | 2 . Hover . | . . Flight . | . . Utility 15 | 7 8 Device 2 | 2 . Storage 10 | 3 7 Processor 3 | 2 1 Hackware . | . . Protection . | . . Artifact . | . . Weapon 12 | 6 6 Energy Gun 5 | 1 4 Energy Cannon . | . . Ballistic Gun 4 | 3 1 Ballistic Cannon . | . . Launcher . | . . Special Weapon 3 | 2 1 Impact Weapon . | . . Slashing Weapon . | . . Piercing Weapon . | . . Special Melee Weapon . | . . Unidentified Prototypes . | . . Parts Lost 6 | . 6 Power 2 | . 2 Propulsion 2 | . 2 Utility . | . . Weapon 2 | . 2 Highest Loss Streak 4 | . 4 Average Slot Usage (%) 95 | . 95 Engine 13 | . 13 Treads 26 | . 26 Device 3 | . 3 Storage 12 | . 12 Processor 11 | . 11 Energy Gun 8 | . 8 Ballistic Gun 10 | . 10 Special Weapon 7 | . 7 Naked Turns . | . . Heaviest Build 40 | 11 40 Greatest Support 40 | 40 40 Greatest Overweight (x) 11 | . 11 Average Overweight (x) . | . . Largest Inventory Capacity 16 | 6 16 Average Capacity 5 | 4 6 Most Carried 10 | 6 10 Average Carried 4 | 3 5 Final Capacity 16 | 4 16 Final Carried 9 | 4 9 Class Distribution -------------------- 63% | Scavenger-Mutant 36% | Mutant Dominant Class ---------------- Mutant | -10/Materials Resources | -11 -10 ----------- Run | Scr Mat Matter Collected 779 | 577 202 Remotely 270 | 270 . Salvage Created 527 | 286 241 Parts 65 | 36 29 Haulers Intercepted . | . . Recyclers Shooed 1 | . 1 Parts Field Recycled . | . . Retrieved Matter . | . . Parts Self-Destructed . | . . Prevented . | . . Kills | -11 -10 ------- Run | Scr Mat Combat Hostiles Destroyed 10 | . 10 Guns 8 | . 8 Cannons 2 | . 2 Classes Destroyed 7 | 3 4 Worker 5 | 4 1 Builder 4 | . 4 Tunneler 10 | 9 1 Recycler 1 | 1 . Watcher 1 | . 1 Swarmer 6 | . 6 Grunt 4 | . 4 Best Kill Streak 7 | 3 7 Combat Bots Only 6 | . 6 Max Kills in Single Turn 2 | 2 1 Gunslinging . | . . Exploded . | . . Melee . | . . Uniques/NPCs Destroyed . | . . Combat | -11 -10 -------- Run | Scr Mat Damage Taken 956 | . 956 Core 256 | . 256 Absorbed by Shields . | . . Core Remaining (%) 100 | 100 . Volleys Fired 79 | 45 34 Largest 2 | 2 2 Hottest 200 | 120 200 Shots Fired 128 | 70 58 Gun 103 | 68 35 Cannon . | . . Launcher . | . . Special 25 | 2 23 Kinetic 82 | 59 23 Thermal 46 | 11 35 Explosive . | . . Electromagnetic . | . . Robot Hit Streak 14 | 11 14 Robot Miss Streak 2 | 2 1 Penetration Max . | . . Secondary Targets 3 | . 3 Max Gunslinging Chain 1 | . 1 Shots Hit Robots 95 | 55 40 Core Hits 42 | 23 19 Critical Hits . | . . Critical Kills . | . . Critical Parts Destroyed . | . . Melee Attacks . | . . Impact . | . . Slashing . | . . Piercing . | . . Sneak Attacks . | . . Combat Hostiles . | . . Follow-up Attacks . | . . Damage Inflicted 1124 | 529 595 Guns 836 | 505 331 Cannons . | . . Explosions . | . . Melee . | . . Ramming . | . . Kinetic 662 | 440 222 Thermal 462 | 89 373 Explosive . | . . Electromagnetic . | . . Impact . | . . Slashing . | . . Piercing . | . . Highest Corruption . | . . Average Corruption . | . . Corruption Purged . | . . Overload Shots . | . . Overflow Damage . | . . Projectiles . | . . Explosions . | . . Melee . | . . Knockbacks . | . . Impact . | . . Kinetic . | . . Secondary . | . . Self-Inflicted Damage . | . . Shots . | . . Rammed . | . . Targets Rammed . | . . Kicked . | . . Crushed . | . . Highest Temperature 192 | 40 192 Average Temperature 65 | 18 78 Received Heat Transfer 618 | . 618 Siege Activations . | . . Robots Corrupted . | . . Combat Hostiles . | . . Parts Fried . | . . Impact Corruptions . | . . Robots Melted . | . . Combat Hostiles . | . . Parts Melted 2 | . 2 Heat Transferred 1000 | 200 800 Parts Sabotaged . | . . Parts Stolen . | . . Parts Stripped . | . . Power Chain Reactions . | . . Missiles Intercepted . | . . Alert | -11 -10 ------- Run | Scr Mat Peak Influence 197 | 60 197 Average Influence 52 | 20 81 Maximum Alert Level . | . . Low Security (%) 100 | 100 100 Level 1 . | . . Level 2 . | . . Level 3 . | . . Level 4 . | . . Level 5 . | . . High Security . | . . Max Security . | . . Squads Dispatched 3 | . 3 Investigation 3 | . 3 Extermination . | . . Reinforcement . | . . Assault . | . . Garrison . | . . Intercept . | . . Construction Impeded . | . . Haulers Reinforced . | . . Stealth | -11 -10 --------- Run | Scr Mat Distress Signals 1 | . 1 Communications Jammed . | . . Distress Signals . | . . Times Spotted 18 | . 18 Peak Tracking Total 8 | . 8 Tactical Retreats . | . . Traps | -11 -10 ------- Run | Scr Mat Traps Triggered 3 | . 3 Indirectly . | . . Trap Hack Attempts . | . . Triggered . | . . Disarmed 6 | . 6 Reprogrammed . | . . Reused . | . . Traps Extracted . | . . Installed . | . . Triggered . | . . Machines | -11 -10 ---------- Run | Scr Mat Machines Disabled . | . . Max in Single Turn . | . . Machines Sabotaged . | . . Garrisons Compromised . | . . Overloaded Fab Kills . | . . Fab Network Shutdowns . | . . Hacking | -11 -10 --------- Run | Scr Mat Machines Accessed 5 | . 5 Terminals 4 | . 4 Fabricators . | . . Repair Stations . | . . Recycling Units 1 | . 1 Scanalyzers . | . . Garrison Access . | . . Total Hacks 23 | . 23 Successful 16 | . 16 Failed 7 | . 7 Catastrophic . | . . Database Lockouts . | . . Manual . | . . Terminals 20 | . 20 Fabricators . | . . Repair Stations . | . . Recycling Units 3 | . 3 Scanalyzers . | . . Garrison Access . | . . Terminal Hacks 13 | . 13 Record 3 | . 3 Prototype ID Bank 1 | . 1 Emergency Access Points 1 | . 1 Alert Level 2 | . 2 Disarm Traps 1 | . 1 Maintenance Status 1 | . 1 Recall Reinforcements 2 | . 2 Hauler Manifests 1 | . 1 Zone Layout 1 | . 1 Fabricator Hacks . | . . Repair Station Hacks . | . . Recycling Unit Hacks 3 | . 3 Process 1 | . 1 Report Inventory 1 | . 1 Retrieve Matter 1 | . 1 Scanalyzer . | . . Garrison Access Hacks . | . . Unauthorized Hacks . | . . Terminals . | . . Fabricators . | . . Repair Stations . | . . Recycling Units . | . . Scanalyzers . | . . Garrison Access . | . . Data Cores Recovered . | . . Used . | . . Hacking Detections 5 | . 5 Full Trace Events 4 | . 4 Feedback Events . | . . Feedback Blocked . | . . Robot Schematics Acquired . | . . Robots Built . | . . Matter . | . . Time . | . . Total Robot Build Rating . | . . Part Schematics Acquired . | . . Parts Built . | . . Matter . | . . Time . | . . Total Part Build Rating . | . . Parts Repaired . | . . Time . | . . Parts Recycled . | . . Recycled Matter . | . . Retrieved Matter . | . . Retrieved Components . | . . Parts Scanalyzed . | . . Part Schematics Acquired . | . . Parts Damaged . | . . Bothacking | -11 -10 ------------ Run | Scr Mat Used RIF Installer . | . . Robots Hacked . | . . Non-combat . | . . Combat . | . . Robot Hacks Applied . | . . Relay Couplers Released . | . . Robots Rewired . | . . Allies Hacked . | . . Hacks Repelled . | . . Allies | -11 -10 -------- Run | Scr Mat Total Allies . | . . Largest Group . | . . Highest-Rated Group . | . . Highest-Rated Ally . | . . Total Orders . | . . Ally Attacks . | . . Total Damage . | . . Kills . | . . Allies Corrupted . | . . Allies Melted . | . . Intel | -11 -10 ------- Run | Scr Mat Robot Analysis Total . | . . Derelict Logs Recovered . | . . Drone Launches . | . . Drone Recoveries . | . . Exploration | -11 -10 ------------- Run | Scr Mat Turns Passed 1181 | 549 632 Spaces Moved 525 | 257 268 Core 9 | 7 2 Treads 487 | 222 265 Legs 1 | . 1 Wheels 28 | 28 . Hover . | . . Flight . | . . Fastest Speed 50 | 50 160 Average Speed 156 | 148 163 Slowest Speed 600 | 160 600 Overloaded Moves . | . . Propulsion Burnouts . | . . Robots Hopped . | . . Cave-ins Triggered . | . . Exploration Rate (%) 28 | 12 45 Regions Visited 1 Branch Regions . Pre-discovered Areas . | . . Known Exits Taken . | . . Unknown Exits Taken 1 | 1 . Scrap Searched . | . . Spaces Dug . | . . Terrain Destroyed 2 | 1 1 Melee . | . . Projectile 2 | 1 1 AOE . | . . Actions | -11 -10 --------- Run | Scr Mat Total 710 | 357 353 Wait 28 | 12 16 Move 524 | 256 268 Hop . | . . Pick Up 26 | 15 11 Fast Attach 8 | 4 4 Attach 8 | 6 2 Detach 1 | 1 . Swap 22 | 10 12 Drop 14 | 8 6 Fire 79 | 45 34 Melee . | . . Ram . | . . Kick . | . . Crush . | . . Escape Stasis . | . . Rewire . | . . Trap . | . . Miscellaneous . | . . Route ------- -11/Scrapyard -10/Materials History --------- Turn | Location | Event 17 | -11/Scrapyard | Discovered new exit (range 15) 550 | -11/Scrapyard | Entered Materials 551 | -10/Materials | Build established: Scavenger-Mutant 1055 | -10/Materials | Build established: Mutant 1159 | -10/Materials | Core integrity fell below 50% 1177 | -10/Materials | Core integrity fell below 20% 1182 | -10/Materials | Destroyed by G-34 Mercenary with Small Laser Last Messages --------------- Acquired 17 matter. Acquired 12 matter. K-01 Serf collects debris. Acquired 11 matter. K-01 Serf collects debris. K-01 Serf cleans the Electrolysis Chamber. G-34 Mercenary destroyed. K-01 Serf collects debris. K-01 Serf cleans the Electrolysis Chamber. Lgt. Treads destroyed. K-01 Serf collects debris. Lgt. Treads destroyed. G-34 Mercenary destroyed. Assault Rifle destroyed. Lgt. Ion Engine destroyed. U-05 Engineer lays Concrete. Acquired Aluminum Leg. K-01 Serf collects debris. Acquired 47 matter. [Achievement: First Step to Greatness] Map ----- +----------------------------------------------------+ | ??????????????????????????????????? | | ??????????????????????????????????? | | ??????????????????????????????????? | | ??????????????????????????????????? | | ??????????????????????????????????? | | ??????????????????????????????????? | | ??????????????????????????????????? | | ??????????????????????? ????????? | | ??????????????????????# ????????? | | ??????????????????????# ????????? | | ?????????????????????? ????????? | | ##???????????????????? ????????? | | ????????????????????" ##??????? | | ##????????????????? """ ??????? | | ##??????????????????""" ??????? | | ???????????????????"" ??????? | | ##??????????????????? u ???????? | | ?#???????????????????? ???????? | | ?#????######????????### ???????? | | ###### #????????? # #???????? | | ##### ?????+ #???????? | | +??????# ######### | | [ #??????????# # # | | [ #??????????# g # """# | | ######??????????# # """# | | #???????????????# g@#[ """# | | ################# gk/!= # | | #=%= """# | | ### ################### ##[= """# | | #?# #?????????????????# ##* =k"""# | | ###+######????????????# ## [ # | | # ?????????????# #####+#### | | # ?????????????# # # | | # ?????????####?# # # | | # ????????##! ### # # | | # """ ????????# # # | | # """"" ????????# / # | | + """"" ???????# # # | | # """"" #??????#! # # | | # """ #??????##!! # # | | ##########???????#### # # | | #???????????????????# ########## | | #???????????????????# #????????? | | #???????????????????# #????????? | | #???????????????????# #????????? | | #???????????????????# #????????? | | #???????????????????# #????????? | | #???????????????????+ +????????? | | #???????????????????# #????????? | | #???????????????????# #????????? | +----------------------------------------------------+ Best States ------------- Heat Dissipation 25 Energy Generation 10 Energy Capacity 250 Matter Stores 371 Matter Capacity 400 Sight Range 16 Terrain Scan Range 16 Terrain Scan Density 60 Resistance: KI 20 Resistance: TH 20 Resistance: EX 20 Resistance: EM 20 Resistance: I 20 Resistance: S 20 Resistance: P 20 Evasion (%) 44 Targeting Accuracy 5 Recoil Reduction 2 Offensive Hacking 10 Item Schematics ----------------- None Robot Schematics ------------------ None Fabricated ------------ Nothing Alien Tech Used ----------------- None Achievements -------------- Crack Shot First Step to Greatness One Hack Too Far Shopping List Use The Force Challenges ------------ None Game ------ Seed TrackerDimensionalGun Manual? 0 Play Time 00:31:21 Cumulative 19.5 hours Start 2020.01.09 @ 22:07:54 End 2020.01.09 @ 23:03:29 Sessions 1 Manual Loads 0 Difficulty Adventurer Special Mode None Game No. 27 Rogue 26 Adventurer 1 Explorer 0 Win Type - Total 0 Types 0/0/0/0/0/0/0 Lore% 4 Gallery% 16 Achievement% 1 Wizard Run 0 Options --------- ASCII 0 Keyboard 0 Movement Mouse Keybinds 0 Fullscreen 1 Font 32/CogWide Map View 76x50 Tactical HUD 0 Map Filters NONE Filters NONE Steam 1 RUN: dc0ed274-1bef-4678-90ae-82464de9e67a